fUST/lending_fUST_20250705
["ID","MTS","AMOUNT","RATE_DAILY","PERIOD"]
[369787990,1751724642838,-460.0,0.00019452,2]
[369787992,1751724642847,-460.0,0.00019452,2]
[369787994,1751724642856,-2310.01,0.00019452,2]
[369787996,1751724642866,-460.0,0.00019452,2]
[369787998,1751724642884,-460.0,0.00019452,2]
[369788000,1751724642895,-460.0,0.00019452,2]
[369788003,1751724642904,-460.0,0.00019452,2]
[369788004,1751724642915,-460.0,0.00019452,2]
[369788007,1751724642925,-1799.0,0.00019452,2]
[369788009,1751724642936,-604.54658902,0.00019452,2]
[369788011,1751724642947,-460.0,0.00019452,2]
[369788013,1751724642959,-460.0,0.00019452,2]
[369788015,1751724642969,-460.0,0.00019452,2]
[369788016,1751724642979,-1367.37,0.00019452,2]
[369788018,1751724642989,-460.0,0.00019452,2]
[369788020,1751724642998,-460.0,0.00019452,2]
[369788023,1751724643008,-460.0,0.00019452,2]
[369788024,1751724643017,-901.69,0.00019452,2]
[369788026,1751724643026,-460.0,0.00019452,2]
[369788029,1751724643036,-460.0,0.00019452,2]
[369788032,1751724643046,-460.0,0.00019452,2]
[369788034,1751724643054,-552.91,0.00019452,2]
[369788037,1751724643064,-460.0,0.00019452,2]
[369788040,1751724643073,-4006.67,0.00019452,2]
[369788043,1751724643082,-591.09,0.00019452,2]
[369788046,1751724643092,-460.0,0.00019452,2]
[369788049,1751724643101,-460.0,0.00019452,2]
[369788052,1751724643110,-460.0,0.00019452,2]
[369788054,1751724643120,-4145.81,0.00019452,2]
[369788056,1751724643129,-3523.3,0.00019452,2]
[369788058,1751724643139,-460.0,0.00019452,2]
[369788060,1751724643148,-460.0,0.00019452,2]
[369788062,1751724643158,-460.0,0.00019452,2]
[369788065,1751724643167,-1661.66,0.00019452,2]
[369788067,1751724643177,-460.0,0.00019452,2]
[369788069,1751724643188,-1127.28,0.00019452,2]
[369788071,1751724643198,-460.0,0.00019452,2]
[369788073,1751724643208,-460.0,0.00019452,2]
[369788076,1751724643218,-460.0,0.00019452,2]
[369788079,1751724643228,-460.0,0.00019452,2]
[369788082,1751724643237,-842.67,0.00019452,2]
[369788085,1751724643247,-487.67239242,0.00019452,2]
[369788088,1751724643257,-460.0,0.00019452,2]
[369788090,1751724643266,-460.0,0.00019452,2]
[369788093,1751724643275,-460.0,0.00019452,2]
[369788096,1751724643285,-460.0,0.00019452,2]
[369788099,1751724643295,-460.0,0.00019452,2]
[369788103,1751724643304,-460.0,0.00019452,2]
[369788105,1751724643314,-717.96,0.00019452,2]
[369788107,1751724643324,-634.26,0.00019452,2]
[369788109,1751724643334,-460.0,0.00019452,2]
[369788111,1751724643343,-460.0,0.00019452,2]
[369788113,1751724643353,-460.0,0.00019452,2]
[369788115,1751724643362,-519.11,0.00019452,2]
[369788117,1751724643372,-460.0,0.00019452,2]
[369788119,1751724643382,-460.0,0.00019452,2]
[369788121,1751724643391,-460.0,0.00019452,2]
[369788123,1751724643400,-460.0,0.00019452,2]
[369788125,1751724643410,-2836.21,0.00019452,2]
[369788127,1751724643419,-701.03,0.00019452,2]
[369788129,1751724643429,-2821.81,0.00019452,2]
[369788131,1751724643439,-460.0,0.00019452,2]
[369788133,1751724643448,-460.0,0.00019452,2]
[369788135,1751724643458,-1055.53,0.00019452,2]
[369788137,1751724643469,-460.0,0.00019452,2]
[369788139,1751724643478,-460.0,0.00019452,2]
[369788141,1751724643487,-557.62,0.00019452,2]
[369788143,1751724643497,-460.0,0.00019452,2]
[369788145,1751724643506,-460.0,0.00019452,2]
[369788147,1751724643515,-3485.67,0.00019452,2]
[369788149,1751724643525,-460.0,0.00019452,2]
[369788151,1751724643535,-460.0,0.00019452,2]
[369788153,1751724643544,-2273.84,0.00019452,2]
[369788155,1751724643553,-796.81,0.00019452,2]
[369788157,1751724643563,-542.26,0.00019452,2]
[369788159,1751724643572,-490.96,0.00019452,2]
[369788161,1751724643581,-460.0,0.00019452,2]
[369788163,1751724643591,-460.0,0.00019452,2]
[369788165,1751724643600,-460.0,0.00019452,2]
[369788167,1751724643609,-460.0,0.00019452,2]
[369788169,1751724643619,-2133.03,0.00019452,2]
[369788171,1751724643628,-460.0,0.00019452,2]
[369788173,1751724643637,-460.0,0.00019452,2]
[369788175,1751724643647,-460.0,0.00019452,2]
[369788177,1751724643656,-460.0,0.00019452,2]
[369788179,1751724643666,-460.0,0.00019452,2]
[369788181,1751724643675,-460.0,0.00019452,2]
[369788183,1751724643684,-1765.39,0.00019452,2]
[369788185,1751724643693,-460.0,0.00019452,2]
[369788187,1751724643702,-1551.28,0.00019452,2]
[369788189,1751724643711,-463.24,0.00019452,2]
[369788191,1751724643720,-460.0,0.00019452,2]
[369788193,1751724643729,-460.0,0.00019452,2]
[369788195,1751724643738,-6194.09,0.00019452,2]
[369788197,1751724643747,-460.0,0.00019452,2]
[369788199,1751724643757,-460.0,0.00019452,2]
[369788201,1751724643768,-2318.19,0.00019452,2]
[369788203,1751724643777,-460.0,0.00019452,2]
[369788205,1751724643788,-560.11,0.00019452,2]
[369788207,1751724643798,-460.0,0.00019452,2]
[369788208,1751724643807,-731.62,0.00019452,2]
[369788211,1751724643817,-460.0,0.00019452,2]
[369788213,1751724643826,-818.91,0.00019452,2]
[369788215,1751724643835,-460.0,0.00019452,2]
[369788217,1751724643844,-460.0,0.00019452,2]
[369788219,1751724643853,-460.0,0.00019452,2]
[369788221,1751724643863,-460.0,0.00019452,2]
[369788223,1751724643873,-460.0,0.00019452,2]
[369788226,1751724643885,-592.72,0.00019452,2]
[369788228,1751724643894,-5120.32,0.00019452,2]
[369788230,1751724643903,-460.0,0.00019452,2]
[369788232,1751724643912,-460.0,0.00019452,2]
[369788234,1751724643924,-460.0,0.00019452,2]
[369788236,1751724643933,-460.0,0.00019452,2]
[369788238,1751724643943,-592.97,0.00019452,2]
[369788239,1751724643954,-2273.83,0.00019452,2]
[369788241,1751724643963,-764.24,0.00019452,2]
[369788244,1751724643973,-1473.19,0.00019452,2]
[369788246,1751724643982,-460.0,0.00019452,2]
[369788247,1751724643992,-555.4,0.00019452,2]
[369788249,1751724644002,-460.0,0.00019452,2]
[369788251,1751724644011,-460.0,0.00019452,2]
[369788253,1751724644020,-1488.15,0.00019452,2]
[369788255,1751724644029,-460.0,0.00019452,2]
[369788258,1751724644039,-460.0,0.00019452,2]
[369788262,1751724644048,-460.0,0.00019452,2]
[369788265,1751724644059,-1140.2,0.00019452,2]
[369788266,1751724644068,-914.43,0.00019452,2]
[369788270,1751724644077,-568.64,0.00019452,2]
[369788272,1751724644087,-460.0,0.00019452,2]
[369788274,1751724644097,-460.0,0.00019726,2]
[369788276,1751724644106,-460.0,0.00019726,2]
[369788278,1751724644115,-460.0,0.00019726,2]
[369788279,1751724644125,-460.0,0.00019726,2]
[369788282,1751724644135,-460.0,0.00019726,2]
[369788283,1751724644146,-460.0,0.00019726,2]
[369788285,1751724644156,-460.0,0.00019726,2]
[369788288,1751724644167,-460.0,0.00019726,2]
[369788289,1751724644177,-460.0,0.00019726,2]
[369788292,1751724644187,-460.0,0.00019726,2]
[369788294,1751724644197,-460.0,0.00019726,2]
[369788296,1751724644207,-477.97,0.00019726,2]
[369788298,1751724644217,-460.0,0.00019726,2]
[369788300,1751724644226,-460.0,0.00019726,2]
[369788302,1751724644236,-460.0,0.00019726,2]
[369788304,1751724644245,-460.0,0.00019726,2]
[369788306,1751724644254,-460.0,0.00019726,2]
[369788308,1751724644263,-460.0,0.00019726,2]
[369788310,1751724644273,-460.0,0.00019726,2]
[369788312,1751724644282,-460.0,0.00019726,2]
[369788314,1751724644291,-730.68,0.00019726,2]
[369788316,1751724644301,-808.69,0.00019726,2]
[369788318,1751724644311,-460.0,0.00019726,2]
[369788319,1751724644320,-460.0,0.00019726,2]
[369788322,1751724644330,-460.0,0.00019726,2]
[369788324,1751724644340,-460.0,0.00019726,2]
[369788326,1751724644349,-460.0,0.00019726,2]
[369788328,1751724644358,-460.0,0.00019726,2]
[369788330,1751724644368,-460.0,0.00019726,2]
[369788332,1751724644377,-614.85,0.00019726,2]
[369788333,1751724644386,-460.0,0.00019726,2]
[369788335,1751724644395,-460.0,0.00019726,2]
[369788337,1751724644405,-460.0,0.00019726,2]
[369788340,1751724644415,-460.0,0.00019726,2]
[369788341,1751724644424,-460.0,0.00019726,2]
[369788343,1751724644434,-460.0,0.00019726,2]
[369788345,1751724644445,-460.0,0.00019726,2]
[369788347,1751724644455,-460.0,0.00019726,2]
[369788349,1751724644464,-460.0,0.00019726,2]
[369788351,1751724644474,-460.0,0.00019726,2]
[369788353,1751724644483,-460.0,0.00019726,2]
[369788355,1751724644492,-460.0,0.00019726,2]
[369788357,1751724644502,-460.0,0.00019726,2]
[369788359,1751724644511,-460.0,0.00019726,2]
[369788361,1751724644521,-460.0,0.00019726,2]
[369788363,1751724644531,-460.0,0.00019726,2]
[369788365,1751724644541,-348.95,0.00019726,2]
[369788367,1751724644549,-460.0,0.00019726,2]
[369788369,1751724644559,-460.0,0.00019726,2]
[369788371,1751724644568,-841.43,0.00019726,2]
[369788373,1751724644577,-460.0,0.00019726,2]
[369788375,1751724644586,-460.0,0.00019726,2]
[369788377,1751724644596,-460.0,0.00019726,2]
[369788379,1751724644605,-460.0,0.00019726,2]
[369788381,1751724644614,-571.48,0.00019726,2]
[369788383,1751724644624,-460.0,0.00019726,2]
[369788385,1751724644635,-460.0,0.00019726,2]
[369788387,1751724644645,-489.85,0.00019726,2]
[369788389,1751724644654,-469.44,0.00019726,2]
[369788391,1751724644663,-460.0,0.00019726,2]
[369788393,1751724644673,-460.0,0.00019726,2]
[369788395,1751724644682,-460.0,0.00019726,2]
[369788397,1751724644692,-460.0,0.00019726,2]
[369788399,1751724644701,-460.0,0.00019726,2]
[369788401,1751724644711,-460.0,0.00019726,2]
[369788403,1751724644720,-460.0,0.00019726,2]
[369788405,1751724644730,-460.0,0.00019726,2]
[369788407,1751724644739,-460.0,0.00019726,2]
[369788409,1751724644748,-460.0,0.00019726,2]
[369788411,1751724644757,-460.0,0.00019726,2]
[369788413,1751724644767,-460.0,0.00019726,2]
[369788415,1751724644776,-460.0,0.00019726,2]
[369788417,1751724644785,-460.0,0.00019726,2]
[369788419,1751724644795,-460.0,0.00019726,2]
[369788421,1751724644804,-460.0,0.00019726,2]
[369788423,1751724644814,-580.28,0.00019726,2]
[369788425,1751724644823,-690.87,0.00019726,2]
[369788427,1751724644833,-863.43,0.00019726,2]
[369788429,1751724644842,-460.0,0.00019726,2]
[369788431,1751724644851,-460.0,0.00019726,2]
[369788433,1751724644861,-460.0,0.00019726,2]
[369788435,1751724644870,-2310.01,0.00019726,2]
[369788437,1751724644884,-460.0,0.00019726,2]
[369788439,1751724644894,-460.0,0.00019726,2]
[369788441,1751724644903,-460.0,0.00019726,2]
[369788443,1751724644913,-460.0,0.00019726,2]
[369788445,1751724644923,-460.0,0.00019726,2]
[369788447,1751724644932,-1799.0,0.00019726,2]
[369788449,1751724644941,-345.33945909,0.00019726,2]
[369788451,1751724644952,-460.0,0.00019726,2]
[369788453,1751724644962,-460.0,0.00019726,2]
[369788455,1751724644971,-1367.37,0.00019726,2]
[369788457,1751724644981,-460.0,0.00019726,2]
[369788459,1751724644990,-460.0,0.00019726,2]
[369788461,1751724644999,-901.69,0.00019726,2]
[369788463,1751724645008,-460.0,0.00019726,2]
[369788465,1751724645018,-460.0,0.00019726,2]
[369788467,1751724645027,-460.0,0.00019726,2]
[369788469,1751724645037,-416.60568797,0.00019726,2]
[369788471,1751724645046,-552.91,0.00019726,2]
[369788473,1751724645055,-460.0,0.00019726,2]
[369788475,1751724645064,-4006.67,0.00019726,2]
[369788477,1751724645074,-591.09,0.00019726,2]
[369788479,1751724645083,-460.0,0.00019726,2]
[369788481,1751724645092,-460.0,0.00019726,2]
[369788483,1751724645101,-460.0,0.00019726,2]
[369788485,1751724645111,-4145.81,0.00019726,2]
[369788487,1751724645120,-3523.3,0.00019726,2]
[369788489,1751724645129,-460.0,0.00019726,2]
[369788491,1751724645139,-460.0,0.00019726,2]
[369788493,1751724645148,-460.0,0.00019726,2]
[369788495,1751724645157,-1661.66,0.00019726,2]
[369788497,1751724645166,-460.0,0.00019726,2]
[369788499,1751724645176,-1127.28,0.00019726,2]
[369788501,1751724645186,-460.0,0.00019726,2]
[369788503,1751724645195,-460.0,0.00019726,2]
[369788505,1751724645205,-460.0,0.00019726,2]
[369788507,1751724645214,-460.0,0.00019726,2]
[369788509,1751724645224,-842.67,0.00019726,2]
[369788511,1751724645233,-460.0,0.00019726,2]
[369788513,1751724645243,-460.0,0.00019726,2]
[369788515,1751724645252,-460.0,0.00019726,2]
[369788517,1751724645262,-460.0,0.00019726,2]
[369788519,1751724645271,-460.0,0.00019726,2]
[369788521,1751724645280,-717.96,0.00019726,2]
[369788523,1751724645290,-634.26,0.00019726,2]
[369788525,1751724645299,-460.0,0.00019726,2]
[369788527,1751724645310,-460.0,0.00019726,2]
[369788529,1751724645319,-519.11,0.00019726,2]
[369788531,1751724645329,-460.0,0.00019726,2]
[369788533,1751724645339,-460.0,0.00019726,2]
[369788535,1751724645349,-460.0,0.00019726,2]
[369788537,1751724645359,-460.0,0.00019726,2]
[369788539,1751724645368,-2836.21,0.00019726,2]
[369788541,1751724645378,-701.03,0.00019726,2]
[369788543,1751724645388,-2821.81,0.00019726,2]
[369788545,1751724645398,-460.0,0.00019726,2]
[369788547,1751724645407,-1055.53,0.00019726,2]
[369788548,1751724645416,-460.0,0.00019726,2]
[369788550,1751724645426,-557.62,0.00019726,2]
[369788553,1751724645436,-460.0,0.00019726,2]
[369788554,1751724645447,-460.0,0.00019726,2]
[369788557,1751724645456,-3485.67,0.00019726,2]
[369788559,1751724645467,-460.0,0.00019726,2]
[369788561,1751724645477,-460.0,0.00019726,2]
[369788563,1751724645488,-2273.84,0.00019726,2]
[369788565,1751724645497,-796.81,0.00019726,2]
[369788567,1751724645507,-542.26,0.00019726,2]
[369788568,1751724645517,-490.96,0.00019726,2]
[369788571,1751724645527,-460.0,0.00019726,2]
[369788573,1751724645538,-460.0,0.00019726,2]
[369788575,1751724645547,-460.0,0.00019726,2]
[369788577,1751724645557,-460.0,0.00019726,2]
[369788579,1751724645567,-2133.03,0.00019726,2]
[369788581,1751724645576,-460.0,0.00019726,2]
[369788583,1751724645586,-460.0,0.00019726,2]
[369788585,1751724645595,-460.0,0.00019726,2]
[369788587,1751724645605,-460.0,0.00019726,2]
[369788589,1751724645614,-460.0,0.00019726,2]
[369788590,1751724645624,-460.0,0.00019726,2]
[369788593,1751724645634,-1765.39,0.00019726,2]
[369788594,1751724645643,-460.0,0.00019726,2]
[369788596,1751724645652,-1551.28,0.00019726,2]
[369788598,1751724645661,-463.24,0.00019726,2]
[369788600,1751724645671,-460.0,0.00019726,2]
[369788602,1751724645680,-460.0,0.00019726,2]
[369788604,1751724645690,-6194.09,0.00019726,2]
[369788606,1751724645699,-460.0,0.00019726,2]
[369788608,1751724645710,-2318.19,0.00019726,2]
[369788610,1751724645719,-460.0,0.00019726,2]
[369788612,1751724645729,-560.11,0.00019726,2]
[369788614,1751724645738,-365.40663386,0.00019726,2]
[369788616,1751724645748,-731.62,0.00019726,2]
[369788618,1751724645757,-460.0,0.00019726,2]
[369788620,1751724645766,-818.91,0.00019726,2]
[369788622,1751724645775,-460.0,0.00019726,2]
[369788624,1751724645785,-460.0,0.00019726,2]
[369788626,1751724645795,-460.0,0.00019726,2]
[369788628,1751724645804,-460.0,0.00019726,2]
[369788630,1751724645813,-460.0,0.00019726,2]
[369788632,1751724645823,-592.72,0.00019726,2]
[369788634,1751724645832,-460.0,0.00019726,2]
[369788636,1751724645841,-5120.32,0.00019726,2]
[369788638,1751724645851,-460.0,0.00019726,2]
[369788640,1751724645860,-460.0,0.00019726,2]
[369788642,1751724645870,-460.0,0.00019726,2]
[369788644,1751724645884,-592.97,0.00019726,2]
[369788646,1751724645894,-2273.83,0.00019726,2]
[369788648,1751724645903,-764.24,0.00019726,2]
[369788650,1751724645912,-1473.19,0.00019726,2]
[369788652,1751724645922,-460.0,0.00019726,2]
[369788654,1751724645931,-555.4,0.00019726,2]
[369788656,1751724645941,-460.0,0.00019726,2]
[369788658,1751724645950,-460.0,0.00019726,2]
[369788659,1751724645960,-460.0,0.00019726,2]
[369788660,1751724645969,-1488.15,0.00019726,2]
[369788661,1751724645978,-460.0,0.00019726,2]
[369788662,1751724645987,-460.0,0.00019726,2]
[369788663,1751724645997,-1140.2,0.00019726,2]
[369788664,1751724646006,-914.43,0.00019726,2]
[369788665,1751724646016,-568.64,0.00019726,2]
[369788666,1751724646026,-500.0,0.00019812,2]
[369788667,1751724646035,-500.0,0.00019812,2]
[369788668,1751724646045,-500.0,0.00019812,2]
[369788669,1751724646054,-500.0,0.00019823,2]
[369788671,1751724646064,-735.07230494,0.000199,2]
[369788684,1751724646073,-460.0,0.0002,2]
[369788687,1751724646255,-460.0,0.0002,2]
[369788689,1751724646265,-460.0,0.0002,2]
[369788691,1751724646275,-460.0,0.0002,2]
[369788693,1751724646285,-460.0,0.0002,2]
[369788695,1751724646294,-460.0,0.0002,2]
[369788697,1751724646304,-460.0,0.0002,2]
[369788699,1751724646315,-460.0,0.0002,2]
[369788700,1751724646324,-460.0,0.0002,2]
[369788703,1751724646334,-460.0,0.0002,2]
[369788705,1751724646344,-460.0,0.0002,2]
[369788707,1751724646354,-477.97,0.0002,2]
[369788708,1751724646363,-460.0,0.0002,2]
[369788711,1751724646373,-460.0,0.0002,2]
[369788713,1751724646383,-460.0,0.0002,2]
[369788715,1751724646392,-243.21879692,0.0002,2]
[369788717,1751724646402,-460.0,0.0002,2]
[369788719,1751724646411,-460.0,0.0002,2]
[369788721,1751724646421,-460.0,0.0002,2]
[369788723,1751724646430,-460.0,0.0002,2]
[369788725,1751724646440,-730.68,0.0002,2]
[369788727,1751724646450,-808.69,0.0002,2]
[369788729,1751724646459,-161.81398584,0.0002,2]
[369788731,1751724646469,-460.0,0.0002,2]
[369788733,1751724646479,-460.0,0.0002,2]
[369788735,1751724646490,-460.0,0.0002,2]
[369788737,1751724646499,-334.01379541,0.0002,2]
[369788739,1751724646509,-460.0,0.0002,2]
[369788741,1751724646519,-460.0,0.0002,2]
[369788743,1751724646529,-614.85,0.0002,2]
[369788745,1751724646539,-460.0,0.0002,2]
[369788746,1751724646549,-460.0,0.0002,2]
[369788749,1751724646559,-460.0,0.0002,2]
[369788751,1751724646568,-460.0,0.0002,2]
[369788752,1751724646578,-460.0,0.0002,2]
[369788755,1751724646588,-460.0,0.0002,2]
[369788757,1751724646598,-460.0,0.0002,2]
[369788759,1751724646608,-460.0,0.0002,2]
[369788761,1751724646617,-460.0,0.0002,2]
[369788763,1751724646628,-460.0,0.0002,2]
[369788765,1751724646637,-450.39120085,0.0002,2]
[369788767,1751724646647,-460.0,0.0002,2]
[369788769,1751724646657,-460.0,0.0002,2]
[369788771,1751724646666,-460.0,0.0002,2]
[369788773,1751724646676,-568.02860296,0.0002,2]
[369788775,1751724646686,-841.43,0.0002,2]
[369788777,1751724646695,-460.0,0.0002,2]
[369788779,1751724646706,-460.0,0.0002,2]
[369788781,1751724646715,-460.0,0.0002,2]
[369788783,1751724646725,-460.0,0.0002,2]
[369788785,1751724646734,-571.48,0.0002,2]
[369788787,1751724646744,-460.0,0.0002,2]
[369788789,1751724646753,-460.0,0.0002,2]
[369788791,1751724646763,-489.85,0.0002,2]
[369788793,1751724646773,-469.44,0.0002,2]
[369788795,1751724646782,-460.0,0.0002,2]
[369788797,1751724646792,-460.0,0.0002,2]
[369788799,1751724646801,-460.0,0.0002,2]
[369788801,1751724646810,-460.0,0.0002,2]
[369788803,1751724646820,-560.0,0.0002,2]
[369788805,1751724646830,-460.0,0.0002,2]
[369788807,1751724646840,-460.0,0.0002,2]
[369788809,1751724646850,-460.0,0.0002,2]
[369788811,1751724646860,-490.44404902,0.0002,2]
[369788813,1751724646869,-460.0,0.0002,2]
[369788815,1751724646883,-460.0,0.0002,2]
[369788817,1751724646894,-460.0,0.0002,2]
[369788819,1751724646904,-304.56904208,0.0002,2]
[369788821,1751724646914,-460.0,0.0002,2]
[369788823,1751724646924,-460.0,0.0002,2]
[369788825,1751724646934,-690.87,0.0002,2]
[369788827,1751724646944,-863.43,0.0002,2]
[369788829,1751724646956,-460.0,0.0002,2]
[369788831,1751724646965,-460.0,0.0002,2]
[369788833,1751724646975,-460.0,0.0002,2]
[369788835,1751724646985,-2310.01,0.0002,2]
[369788837,1751724646995,-460.0,0.0002,2]
[369788839,1751724647005,-460.0,0.0002,2]
[369788841,1751724647015,-460.0,0.0002,2]
[369788843,1751724647025,-460.0,0.0002,2]
[369788845,1751724647035,-460.0,0.0002,2]
[369788847,1751724647047,-1799.0,0.0002,2]
[369788849,1751724647056,-460.0,0.0002,2]
[369788851,1751724647066,-217.01753594,0.0002,2]
[369788853,1751724647080,-1367.37,0.0002,2]
[369788855,1751724647089,-460.0,0.0002,2]
[369788857,1751724647100,-460.0,0.0002,2]
[369788859,1751724647110,-901.69,0.0002,2]
[369788861,1751724647119,-460.0,0.0002,2]
[369788863,1751724647129,-460.0,0.0002,2]
[369788865,1751724647139,-460.0,0.0002,2]
[369788867,1751724647148,-552.91,0.0002,2]
[369788869,1751724647157,-460.0,0.0002,2]
[369788871,1751724647167,-4006.67,0.0002,2]
[369788873,1751724647176,-591.09,0.0002,2]
[369788875,1751724647185,-460.0,0.0002,2]
[369788877,1751724647195,-460.0,0.0002,2]
[369788879,1751724647204,-460.0,0.0002,2]
[369788881,1751724647214,-4145.81,0.0002,2]
[369788883,1751724647224,-3523.3,0.0002,2]
[369788885,1751724647233,-460.0,0.0002,2]
[369788887,1751724647242,-460.0,0.0002,2]
[369788889,1751724647253,-460.0,0.0002,2]
[369788891,1751724647263,-1661.66,0.0002,2]
[369788893,1751724647273,-460.0,0.0002,2]
[369788895,1751724647282,-1127.28,0.0002,2]
[369788897,1751724647292,-460.0,0.0002,2]
[369788899,1751724647302,-460.0,0.0002,2]
[369788901,1751724647313,-163.75839206,0.0002,2]
[369788903,1751724647322,-460.0,0.0002,2]
[369788905,1751724647331,-842.67,0.0002,2]
[369788907,1751724647341,-460.0,0.0002,2]
[369788909,1751724647351,-460.0,0.0002,2]
[369788911,1751724647361,-460.0,0.0002,2]
[369788913,1751724647371,-460.0,0.0002,2]
[369788915,1751724647381,-460.0,0.0002,2]
[369788917,1751724647390,-717.96,0.0002,2]
[369788919,1751724647401,-634.26,0.0002,2]
[369788921,1751724647410,-460.0,0.0002,2]
[369788923,1751724647420,-460.0,0.0002,2]
[369788925,1751724647430,-519.11,0.0002,2]
[369788927,1751724647440,-460.0,0.0002,2]
[369788929,1751724647449,-460.0,0.0002,2]
[369788931,1751724647460,-460.0,0.0002,2]
[369788933,1751724647470,-460.0,0.0002,2]
[369788935,1751724647479,-2836.21,0.0002,2]
[369788937,1751724647489,-701.03,0.0002,2]
[369788939,1751724647498,-2821.81,0.0002,2]
[369788941,1751724647508,-460.0,0.0002,2]
[369788943,1751724647518,-1055.53,0.0002,2]
[369788945,1751724647529,-460.0,0.0002,2]
[369788947,1751724647538,-557.62,0.0002,2]
[369788949,1751724647547,-121.19904886,0.0002,2]
[369788969,1751724647719,-338.80095114,0.0002,2]
[369788971,1751724647729,-460.0,0.0002,2]
[369788973,1751724647738,-1871.39333554,0.0002,2]
[369788975,1751724647750,-1614.27666446,0.0002,2]
[369788977,1751724647760,-460.0,0.0002,2]
[369788979,1751724647770,-460.0,0.0002,2]
[369788981,1751724647779,-2273.84,0.0002,2]
[369788983,1751724647789,-796.81,0.0002,2]
[369788985,1751724647798,-542.26,0.0002,2]
[369788987,1751724647807,-490.96,0.0002,2]
[369788989,1751724647818,-460.0,0.0002,2]
[369788991,1751724647828,-460.0,0.0002,2]
[369788993,1751724647838,-460.0,0.0002,2]
[369788995,1751724647847,-460.0,0.0002,2]
[369788997,1751724647856,-1269.73671892,0.0002,2]
[369788999,1751724647868,-504.32018305,0.0002,2]
[369789001,1751724647883,-358.97309803,0.0002,2]
[369789003,1751724647893,-460.0,0.0002,2]
[369789005,1751724647903,-323.64928269,0.0002,2]
[369789007,1751724647912,-460.0,0.0002,2]
[369789009,1751724647922,-460.0,0.0002,2]
[369789011,1751724647932,-460.0,0.0002,2]
[369789013,1751724647942,-158.56149546,0.0002,2]
[369789015,1751724647955,-301.43850454,0.0002,2]
[369789017,1751724647968,-703.82878457,0.0002,2]
[369789035,1751724648127,-460.0,0.00019178,2]
[369789037,1751724648136,-460.0,0.00019726,2]
[369789039,1751724648146,-1061.56121543,0.0002,2]
[369789041,1751724648157,-365.92457769,0.0002,2]
[369789043,1751724648167,-1551.28,0.0002,2]
[369789045,1751724648177,-463.24,0.0002,2]